Workbook

Sheet Heizkostenabrechnung
A1: Heizkostenabrechnung
A3: Objektdaten
A4: Objekt/Adresse | C4: Musterstraße 12, 10115 Berlin | G4: Abrechnungszeitraum | I4: 01.01.2025 – 31.12.2025
A5: Vermieter/Hausverwaltung | C5: Muster Hausverwaltung GmbH | G5: Heizart/Energieträger | I5: Gas
A6: Währung | C6: EUR | G6: Notizen | I6: Beispieldaten – frei editierbar
A9: Kostenübersicht (Gesamt)
A10: Kostenart | B10: Betrag (€) | C10: Bemerkung
A11: Brennstoff/Energie | B11: 1,450.00 € | C11: Rechnung Stadtwerke
A12: Betriebsstrom Heizung | B12: 120.00 €
A13: Wartung/Instandhaltung | B13: 210.00 € | C13: Jährliche Wartung
A14: Messdienst/Ablesung/Abrechnung | B14: 160.00 € | C14: Messdienst GmbH
A15: Sonstiges | B15: 60.00 € | C15: Kleinmaterial
A16: SUMME (Gesamtkosten) | B16: =SUM(B11:B15) -> 2,000.00 € | C16: Automatisch
A18: Verteilungsschlüssel
A19: Anteil Grundkosten (%) | E19: 30.00% | G19: Grundkosten (gesamt) | I19: =$B$16*$E$19 -> 600.00 €
A20: Anteil Verbrauchskosten (%) | E20: =1-$E$19 -> 70.00% | G20: Verbrauchskosten (gesamt) | I20: =$B$16*$E$20 -> 1,400.00 €
A21: Grundkosten-Verteilung nach | E21: Wohnfläche (m²)
A22: Verbrauchskosten-Verteilung nach | E22: Verbrauch (kWh)
A24: Abrechnung je Einheit
A25: Einheit | B25: Mieter | C25: Wohnfläche (m²) | D25: Verbrauch (kWh) | E25: Anteil Fläche (%) | F25: Anteil Verbrauch (%) | G25: Grundkosten (€) | H25: Verbrauchskosten (€) | I25: Gesamtkosten (€) | J25: Vorauszahlungen (€) | K25: Saldo (Nachzahlung + / Erstattung -) | L25: Status | M25: Hinweis
A26: Wohnung 1 | B26: M. Schmidt | C26: 80 | D26: 1000 | E26: =IF(C26="","",C26/SUM($C$26:$C$45)) -> 38.10% | F26: =IF(D26="","",D26/SUM($D$26:$D$45)) -> 22.22% | G26: =IF(E26="","",$I$19*E26) -> 228.57 € | H26: =IF(F26="","",$I$20*F26) -> 311.11 € | I26: =IF(OR(G26="",H26=""),"",G26+H26) -> 539.68 € | J26: 850.00 € | K26: =IF(OR(I26="",J26=""),"",I26-J26) -> -310.32 € | L26: =IF(K26="","",IF(K26>0,"Nachzahlung",IF(K26<0,"Erstattung","Ausgeglichen"))) -> Erstattung
A27: Wohnung 2 | B27: L. Weber | C27: 70 | D27: 2000 | E27: 33.33% | F27: 44.44% | G27: 200.00 € | H27: 622.22 € | I27: 822.22 € | J27: 900.00 € | K27: -77.78 € | L27: Erstattung
A28: Wohnung 3 | B28: A. Fischer | C28: 60 | D28: 1500 | E28: 28.57% | F28: 33.33% | G28: 171.43 € | H28: 466.67 € | I28: 638.10 € | J28: 780.00 € | K28: -141.90 € | L28: Erstattung
A46: SUMME | C46: =SUM(C26:C45) -> 210 | D46: =SUM(D26:D45) -> 4500 | G46: =SUM(G26:G45) -> 600.00 € | H46: =SUM(H26:H45) -> 1,400.00 € | I46: =SUM(I26:I45) -> 2,000.00 € | J46: =SUM(J26:J45) -> 2,530.00 € | K46: =SUM(K26:K45) -> -530.00 €
G48: Kontrollsummen
G49: Gesamt Wohnfläche (m²) | K49: =C46 -> 210
G50: Gesamt Verbrauch (kWh) | K50: =D46 -> 4500
G51: Summe Einheiten (Gesamtkosten) | K51: =I46 -> 2,000.00 €
G52: Prüfsumme (soll 0 sein) | K52: =I46-$B$16 -> 0.00 €
